Workbook

Sheet Contents
C2: Contents
F3: Colour Codes | K3: File Name: | M3: =IFERROR(File_name(),"") -> 
C4: Big Points | G4: Inputs | I4: 1234567890
D5: Use PMT with project finance IRR (WACC) to find the LCOE -- you don't need a financial model | G5: Section Titles | I5: TITLE ROW | K5: Last Save Date | M5: =IFERROR(lastsaved(),"") -> 
D6: A financial model is just a proof | G6: Sum Column | I6: 1000000000
D7: LCOE with PMT can account for different lives | G7: True or 1 | I7: =1=1 -> TRUE | K7: Last Save By | M7: =IFERROR(last_save_by(),"") -> 
D8: If you know the project IRR and the life, you just need the capital cost, operating cost and the production | G8: False or 0 | I8: =1=2 -> FALSE
D9: Use the formula Adj IRR = (1+IRR)/(1+Inflation) to adjust carrying charge for inflation | G9: Other Sheet Links | I9: |||||||||||||||||||
D10: Use the formula Adj IRR = (1+IRR)/(1-Degradation) to adjust carrying charge for degradation
D11: Don’t worry about carrying charge factor -- just tells you how much money you need to get back your capital cost and also the financing cost
D12: You can use a financal model to derive the project IRR required to arrive at the equity IRR -- Finance people are obsessed with equity IRR
D13: The big test in financial model verification is the IRR
D14: Taxes on Equity
D15: PV of Tax Shield
D16: Tax Shields must be at the nominal discount rate because they are in nominal currency
D17: After tax WACC
C19: LCOE Calculator
D20: Generating Plant Operating Drivers
D21: Storage/Battery Characteristics
D22: Financing Drivers
D23: Summary Drivers
D24: Operating Model - Driven by Total Costs, Generation, Degradation
D25: Financing Analysis
C27: Natural Gas
C29: Batery Sensitivity
C31: Battery Cost
C33: LCOD Calculator
D34: Operating Characteristics of Autos
D35: Financing Drivers
D36: Summary Drivers
C38: Electric Vehicles
D39: Efficiency
D40: Battery Life
D41: Degradation
D42: Up-Front Cost
D43: Nissan Up-front
D44: Battery Replacement
C46: Hydrogen Vehicles
C48: Malaysia Load
C50: One Day Analysis
D51: Shape Data
D52: Difference between Demand and Supply
D53: Sorted Load and Production and Balance
D54: Graphs
C56: Sheet1
C58: Chart5
C60: Malaysia Hourly Solar

Sheet Total Cost of Ownership
G1: 1 | H1: Nissan Sentra | I1: Fancy | J1: Nissan Leaf | K1: Tesla 3 | L1: Tesla Model S | M1: Mirai | N1: NEXO | T1: =INDEX(J1:R1,G1) -> Nissan Leaf
H2: ICE | I2: ICE | J2: BEV | K2: BEV | L2: BEV | M2: FCEV | N2: FCEV
T3: Financial Model
C4: Nominal LCOD | F4: MYR/km | H4: =H105 -> 0.2520030427 | I4: =I105 -> 0.3972885275 | J4: =J105 -> 0.175939814 | K4: =K105 -> 0.2761941495 | L4: =L105 -> 0.4647892179 | M4: =M105 -> 0.343750228 | N4: =N105 -> 0.4222005515
C5: Real LCOD | F5: MYR/km | H5: =H106 -> 0.2181138389 | I5: =I106 -> 0.3438019434 | J5: =J106 -> 0.1520715517 | K5: =K106 -> 0.2447880979 | L5: =L106 -> 0.4079385502 | M5: =M106 -> 0.2972000254 | N5: =N106 -> 0.3649189303
C7: Nominal Total Cost of Operation | F7: USD/ 100 km | H7: =H108 -> 25.20030427 | I7: =I108 -> 39.72885275 | J7: =J108 -> 17.5939814 | K7: 27.61941495 | L7: =L108 -> 46.47892179 | M7: 34.3750228 | N7: =N108 -> 42.22005515
C8: Real Cost of Operation | F8: USD/100 km | H8: =H109 -> 21.81138389 | I8: =I109 -> 34.38019434 | J8: 15.20715517 | K8: 24.47880979 | L8: =L109 -> 40.79385502 | M8: 29.72000254 | N8: =N109 -> 36.49189303
B10: Operating Characteristics of Autos
C12: Use of Automobile
D13: KM Driven per Year | F13: Km/Year | H13: 25000 | I13: 25000 | J13: =H13 -> 25000 | K13: =J13 -> 25000 | L13: 25000 | M13: 25000 | N13: 25000 | T13: =INDEX(J13:R13,$G$1) -> 25000
D14: Km/Mile | F14: km/mile | H14: 1.60934 | I14: 1.60934 | J14: 1.60934 | K14: 1.60934 | L14: 1.60934 | M14: 1.60934 | N14: 1.60934
D15: Miles per Year | F15: Miles | H15: =H13/H14 -> 15534.31842 | I15: =I13/I14 -> 15534.31842 | J15: 25000 | K15: =H15 -> 15534.31842 | L15: =K15 -> 15534.31842 | M15: 15534.31842 | N15: =M15 -> 15534.31842
D16: Maximum Life (Battery) | F16: Miles | H16: 200000 | I16: 200000 | J16: 200000 | K16: 120000 | L16: 120000 | M16: 120000 | N16: 120000
D17: Car Life | F17: Years | H17: 15 | I17: 15 | J17: 15 | K17: =J17 -> 15 | L17: 15 | M17: 15 | N17: 15 | T17: =INDEX(J17:R17,$G$1) -> 15
C19: Up-Front Cost
D20: Initial Cost of Car | F20: USD | H20: ='Electric Vehicles'!F275 -> 19460 | I20: 35000 | J20: ='Electric Vehicles'!D275 -> 31670 | K20: 50000 | L20: 100000 | M20: 50000 | N20: 69240
C22: Drivers of Operating Cost
D23: Maintenance Cost from IEA | F23: USD/km | H23: 0.08 | I23: 0.09 | J23: 0.065 | K23: 0.065 | L23: 0.065 | M23: 0.0776 | N23: 0.0776
D24: Computed Maintenance Cost | F24: USD/Year | H24: =H23*H15 -> 1242.745473 | I24: =I23*I15 -> 1398.088657 | J24: =J23*J15 -> 1625 | K24: =K23*K15 -> 1009.730697 | L24: =L23*L15 -> 1009.730697 | M24: =M23*M15 -> 1205.463109 | N24: =N23*N15 -> 1205.463109
D25: Maintenance Cost | F25: USD/year | H25: ='Electric Vehicles'!$H$648 -> 1382.2 | I25: ='Electric Vehicles'!$H$648 -> 1382.2 | J25: ='Electric Vehicles'!J578 -> 713 | K25: =H25 -> 1382.2 | L25: =K25 -> 1382.2 | M25: =M23/L23*L25 -> 1650.134154 | N25: =M25 -> 1650.134154
D26: Maintenance Cost | F26: USD/year | H26: =H25 -> 1382.2 | I26: =I24 -> 1398.088657 | J26: =J25 -> 713 | K26: 1382.2 | L26: 1382.2 | M26: 1650.134154 | N26: 1650.134154
D28: Efficiency Petrol | F28: Miles/gallon | H28: 35 | I28: 20
D29: Efficiency Petrol | F29: km/Gallon | H29: =H28*H14 -> 56.3269 | I29: =I28*I14 -> 32.1868
D30: Conversion | F30: Gallons/Litre | H30: 0.26 | I30: 0.26
D31: Efficiency Petrol | F31: km/Litre | H31: =H29*H30 -> 14.644994 | I31: =I29*I30 -> 8.368568
D33: Efficiency - Electric | F33: kWh/mile | J33: 0.21 | K33: 0.27 | L33: 0.29
D34: Efficiency - Electric | F34: kWh/km | J34: =J33/J14 -> 0.1304882747 | K34: =K33/K14 -> 0.1677706389 | L34: =L33/L14 -> 0.1801980936
D36: Efficiency - Hydrogen | F36: kg/km | M36: 0.0076 | N36: 0.0084
D38: Petrol Cost | F38: USD/Litre | H38: 1.5 | I38: 1.5
D39: Conversion | F39: Litre/Gallon | H39: =1/H30 -> 3.846153846 | I39: =1/I30 -> 3.846153846
D40: Petrol Cost | F40: USD/Gallon | H40: =H38*H39 -> 5.769230769 | I40: =I38*I39 -> 5.769230769
D42: Electricity Cost | F42: USD/kWh | J42: 0.15 | K42: =J42 -> 0.15 | L42: =J42 -> 0.15
D43: Hydrogen Cost | F43: USD/kg | M43: 10 | N43: =M43 -> 10
D45: Total Petrol | F45: Litres | H45: =H13/H31 -> 1707.067958 | I45: =I13/I31 -> 2987.368926
D46: Total Electricity | F46: kWh | J46: =J13*J34 -> 3262.206867 | K46: =K34*K13 -> 4194.265972 | L46: =L34*L13 -> 4504.952341
D47: Total Hydrogen | F47: kg | M47: =M36*M13 -> 190 | N47: =N36*N13 -> 210
D49: Total Petrol Cost | F49: USD | H49: =H45*H38 -> 2560.601937 | I49: =I45*I38 -> 4481.053389 | J49: =J46*J42 -> 489.3310301 | K49: =K46*K42 -> 629.1398959 | L49: 675.7428511 | M49: =M47*M43 -> 1900 | N49: =N47*N43 -> 2100
D51: Total Operating Cost | F51: USD | H51: =H49+H26 -> 3942.801937 | I51: =I49+I26 -> 5879.142047 | J51: =J49+J26 -> 1202.33103 | K51: 2011.339896 | L51: 2057.942851 | M51: 3550.134154 | N51: 3750.134154
D53: Degradation | F53: %/year | H53: 0 | I53: 0 | J53: 0.005 | K53: =J53 -> 0.005 | L53: =K53 -> 0.005 | M53: 0 | N53: 0
B55: Financing Drivers
D57: Inflation Rate | F57: %/annum | H57: 0.02 | I57: 0.02 | J57: 0.02 | K57: 0.02 | L57: 0.02 | M57: 0.02 | N57: 0.02 | T57: =INDEX(J57:R57,$G$1) -> 0.02
D58: Project IRR Used in LCOE Calculation | F58: % | H58: 0.04 | I58: 0.04 | J58: 0.04 | K58: 0.04 | L58: 0.04 | M58: 0.04 | N58: 0.04 | T58: =INDEX(J58:R58,$G$1) -> 0.04
B61: Summary Drivers
C63: Part 1: Production from Capacity and Storage
D64: Total Production | F64: km | H64: =H13 -> 25000 | I64: =I13 -> 25000 | J64: =J13 -> 25000 | K64: =K13 -> 25000 | L64: =L13 -> 25000 | M64: =M13 -> 25000 | N64: =N13 -> 25000 | T64: =INDEX(J64:R64,$G$1) -> 25000
D65: Degradation Adjustment | F65: %/annum | H65: =H53 -> 0 | I65: =I53 -> 0 | J65: =J53 -> 0.005 | K65: =K53 -> 0.005 | L65: =L53 -> 0.005 | M65: 0 | N65: =N53 -> 0 | T65: =INDEX(J65:R65,$G$1) -> 0.005
C67: Part 2: Total Capital Cost and Captial Recovery
D68: Net Up-Front Capital Cost | F68: MYR | H68: =H20 -> 19460 | I68: =I20 -> 35000 | J68: =J20 -> 31670 | K68: 50000 | L68: 100000 | M68: 50000 | N68: 69240 | T68: =INDEX(J68:R68,$G$1) -> 31670
D70: Inflation Adjustment | F70: %/annum | H70: =H57 -> 0.02 | I70: =I57 -> 0.02 | J70: =J57 -> 0.02 | K70: 0.02 | L70: =L57 -> 0.02 | M70: 0.02 | N70: =N57 -> 0.02 | T70: =INDEX(J70:R70,$G$1) -> 0.02
D71: Nominal IRR | F71: %/annum | H71: =H58 -> 0.04 | I71: =I58 -> 0.04 | J71: 0.04 | K71: 0.04 | L71: =L58 -> 0.04 | M71: 0.04 | N71: =N58 -> 0.04 | T71: =INDEX(J71:R71,$G$1) -> 0.04
D72: Real Project IRR | F72: %/annum | H72: =(1+H71)/(1+H70)-1 -> 0.01960784314 | I72: =(1+I71)/(1+I70)-1 -> 0.01960784314 | J72: =(1+J71)/(1+J70)-1 -> 0.01960784314 | K72: =(1+K71)/(1+K70)-1 -> 0.01960784314 | L72: =(1+L71)/(1+L70)-1 -> 0.01960784314 | M72: 0.01960784314 | N72: =(1+N71)/(1+N70)-1 -> 0.01960784314 | T72: =INDEX(J72:R72,$G$1) -> 0.01960784314
D73: Degradation Adjusted IRR Nominal | F73: %/annum | H73: =(1+H71)/(1-H65)-1 -> 0.04 | I73: =(1+I71)/(1-I65)-1 -> 0.04 | J73: =(1+J71)/(1-J65)-1 -> 0.04522613065 | K73: =(1+K71)/(1-K65)-1 -> 0.04522613065 | L73: =(1+L71)/(1-L65)-1 -> 0.04522613065 | M73: =(1+M71)/(1-M65)-1 -> 0.04 | N73: =(1+N71)/(1-N65)-1 -> 0.04 | T73: =INDEX(J73:R73,$G$1) -> 0.04522613065
D74: Degradation Adjusted IRR Real | F74: %/annum | H74: =(1+H73)/(1+H70)-1 -> 0.01960784314 | I74: =(1+I73)/(1+I70)-1 -> 0.01960784314 | J74: =(1+J73)/(1+J70)-1 -> 0.02473150064 | K74: =(1+K73)/(1+K70)-1 -> 0.02473150064 | L74: =(1+L73)/(1+L70)-1 -> 0.02473150064 | M74: 0.01960784314 | N74: =(1+N73)/(1+N70)-1 -> 0.01960784314 | T74: =INDEX(J74:R74,$G$1) -> 0.02473150064
D76: Life | F76: Years | H76: =H17 -> 15 | I76: =I17 -> 15 | J76: =J17 -> 15 | K76: 15 | L76: 15 | M76: 15 | N76: 15 | T76: =INDEX(J76:R76,$G$1) -> 15
D78: Nominal Carrying Charge Factor | F78: %/annum | H78: =PMT(H73,H76,-1) -> 0.08994110037 | I78: =PMT(I73,I76,-1) -> 0.08994110037 | J78: =PMT(J73,J76,-1) -> 0.09325862257 | K78: =PMT(K73,K76,-1) -> 0.09325862257 | L78: =PMT(L73,L76,-1) -> 0.09325862257 | M78: =PMT(M73,M76,-1) -> 0.08994110037 | N78: =PMT(N73,N76,-1) -> 0.08994110037 | T78: =INDEX(J78:R78,$G$1) -> 0.09325862257
D79: Real Carrying Charge Factor | F79: %/annum | H79: =PMT(H74,H76,-1) -> 0.07759732963 | I79: =PMT(I74,I76,-1) -> 0.07759732963 | J79: =PMT(J74,J76,-1) -> 0.08060701624 | K79: =PMT(K74,K76,-1) -> 0.08060701624 | L79: =PMT(L74,L76,-1) -> 0.08060701624 | M79: =PMT(M74,M76,-1) -> 0.07759732963 | N79: =PMT(N74,N76,-1) -> 0.07759732963 | T79: =INDEX(J79:R79,$G$1) -> 0.08060701624
D81: Nominal Carrying Charges | F81: MYR/Year | H81: =H78*H68 -> 1750.253813 | I81: =I78*I68 -> 3147.938513 | J81: =J78*J68 -> 2953.500577 | K81: =K78*K68 -> 4662.931128 | L81: =L78*L68 -> 9325.862257 | M81: =M78*M68 -> 4497.055019 | N81: =N78*N68 -> 6227.52179 | T81: =INDEX(J81:R81,$G$1) -> 2953.500577
D82: Real Carrying Charges | F82: MYR/Year | H82: =H79*H68 -> 1510.044035 | I82: =I79*I68 -> 2715.906537 | J82: =J79*J68 -> 2552.824204 | K82: =K79*K68 -> 4030.350812 | L82: =L79*L68 -> 8060.701624 | M82: =M79*M68 -> 3879.866482 | N82: =N79*N68 -> 5372.839104 | T82: =INDEX(J82:R82,$G$1) -> 2552.824204
C84: Part 3: Operating Costs Adjusted for Inflation and Degradation
D85: Operation Cost | F85: USD/Year | H85: =H51 -> 3942.801937 | I85: =I51 -> 5879.142047 | J85: =J51 -> 1202.33103 | K85: 2011.339896 | L85: 2057.942851 | M85: 3550.134154 | N85: 3750.134154 | T85: =INDEX(J85:R85,$G$1) -> 1202.33103
D86: Real IRR | F86: %/annum | H86: =H72 -> 0.01960784314 | I86: =I72 -> 0.01960784314 | J86: =J72 -> 0.01960784314 | K86: =K72 -> 0.01960784314 | L86: =L72 -> 0.01960784314 | M86: =M72 -> 0.01960784314 | N86: =N72 -> 0.01960784314 | T86: =INDEX(J86:R86,$G$1) -> 0.01960784314
D87: Real IRR Adjusted for Degradation | F87: %/annum | H87: =(1+H86)/(1-H65)-1 -> 0.01960784314 | I87: =(1+I86)/(1-I65)-1 -> 0.01960784314 | J87: =(1+J86)/(1-J65)-1 -> 0.02473150064 | K87: =(1+K86)/(1-K65)-1 -> 0.02473150064 | L87: =(1+L86)/(1-L65)-1 -> 0.02473150064 | M87: =(1+M86)/(1-M65)-1 -> 0.01960784314 | N87: =(1+N86)/(1-N65)-1 -> 0.01960784314 | T87: =INDEX(J87:R87,$G$1) -> 0.02473150064
D88: Degradation Adjustment Factor | F88: Index | H88: =PV(H86,H76,-1)/PV(H87,H76,-1) -> 1 | I88: =PV(I86,I76,-1)/PV(I87,I76,-1) -> 1 | J88: =PV(J86,$J$76,-1)/PV(J87,$J$76,-1) -> 1.038785956 | K88: =PV(K86,K76,-1)/PV(K87,K76,-1) -> 1.038785956 | L88: =PV(L86,L76,-1)/PV(L87,L76,-1) -> 1.038785956 | M88: 1 | N88: =PV(N86,N76,-1)/PV(N87,N76,-1) -> 1
D90: Nominal IRR | F90: %/annum | H90: =H71 -> 0.04 | I90: =I71 -> 0.04 | J90: =J71 -> 0.04 | K90: =K71 -> 0.04 | L90: =L71 -> 0.04 | M90: =M71 -> 0.04 | N90: =N71 -> 0.04
D91: Adjusted for Inflation | F91: %/annum | H91: =(1+H90)/(1-H70)-1 -> 0.0612244898 | I91: =(1+I90)/(1-I70)-1 -> 0.0612244898 | J91: =(1+J90)/(1+J57)-1 -> 0.01960784314 | K91: =(1+K90)/(1-K70)-1 -> 0.0612244898 | L91: =(1+L90)/(1-L70)-1 -> 0.0612244898 | M91: =(1+M90)/(1-M70)-1 -> 0.0612244898 | N91: =(1+N90)/(1-N70)-1 -> 0.0612244898
D92: Adjusted for Degradation | F92: %/annum | H92: =(1+H91)/(1+H65)-1 -> 0.0612244898 | I92: =(1+I91)/(1+I65)-1 -> 0.0612244898 | J92: =(1+J90)/(1-J65)-1 -> 0.04522613065 | K92: =(1+K91)/(1+K65)-1 -> 0.05594476597 | L92: =(1+L91)/(1+L65)-1 -> 0.05594476597 | M92: =(1+M91)/(1+M65)-1 -> 0.0612244898 | N92: =(1+N91)/(1+N65)-1 -> 0.0612244898
D93: Adjustment for Inflation | F93: Index | H93: =PV(H91,$J$76,-1)/PV(H90,$J$76,-1) -> 0.8665837292 | I93: =PV(I91,$J$76,-1)/PV(I90,$J$76,-1) -> 0.8665837292 | J93: =PV(J91,$J$76,-1)/PV(J90,$J$76,-1) -> 1.159074685 | K93: 0.8665837292 | L93: =PV(L91,$J$76,-1)/PV(L90,$J$76,-1) -> 0.8665837292 | M93: 0.8665837292 | N93: =PV(N91,$J$76,-1)/PV(N90,$J$76,-1) -> 0.8665837292
D94: Adjustment for Nominal Costs | F94: Index | H94: =PV(H90,H76,-1)/PV(H92,H76,-1) -> 1.153956584 | I94: =PV(I90,I76,-1)/PV(I92,I76,-1) -> 1.153956584 | J94: =PV(J90,J76,-1)/PV(J92,J76,-1) -> 1.036885497 | K94: =PV(K90,K76,-1)/PV(K92,K76,-1) -> 1.114641346 | L94: =PV(L90,L76,-1)/PV(L92,L76,-1) -> 1.114641346 | M94: 1.153956584 | N94: =PV(N90,N76,-1)/PV(N92,N76,-1) -> 1.153956584
D95: Combined Adjustment | F95: Index | H95: =H93*H94 -> 1 | I95: =I93*I94 -> 1 | J95: =J93*J94 -> 1.201827731 | K95: =K93*K94 -> 0.9659300545 | L95: =L93*L94 -> 0.9659300545 | M95: 1 | N95: =N93*N94 -> 1
D97: Nominal Operating Costs Applied | F97: MYR/year | H97: =H85*H94 -> 4549.822255 | I97: =I85*I94 -> 6784.274674 | J97: =J85*J95 -> 1444.994773 | K97: =K85*K94 -> 2241.922609 | L97: =L85*L94 -> 2293.86819 | M97: 4096.700681 | N97: =N85*N94 -> 4327.491998
D98: Real Operating Costs Applied | F98: MYR/year | H98: =H85*H88 -> 3942.801937 | I98: =I85*I88 -> 5879.142047 | J98: =J85*J88 -> 1248.964589 | K98: =K85*K88 -> 2089.351637 | L98: =L85*L88 -> 2137.762132 | M98: =M85*M88 -> 3550.134154 | N98: =N85*N88 -> 3750.134154
C100: Part 4: Total Real and Nominal LCOE
D101: Total Production | F101: km | H101: =H64 -> 25000 | I101: =I64 -> 25000 | J101: =J64 -> 25000 | K101: =K64 -> 25000 | L101: =L64 -> 25000 | M101: =M64 -> 25000 | N101: =N64 -> 25000 | T101: =INDEX(J101:R101,$G$1) -> 25000
D102: Total Nominal Cost | F102: USD/Year | H102: =H81+H97 -> 6300.076068 | I102: =I81+I97 -> 9932.213187 | J102: =J81+J97 -> 4398.49535 | K102: 6904.853738 | L102: =L81+L97 -> 11619.73045 | M102: 8593.7557 | N102: =N81+N97 -> 10555.01379 | T102: =INDEX(J102:R102,$G$1) -> 4398.49535
D103: Total Real Cost | F103: USD/Year | H103: =H82+H98 -> 5452.845971 | I103: =I82+I98 -> 8595.048584 | J103: 3801.788793 | K103: 6119.702449 | L103: =L82+L98 -> 10198.46376 | M103: 7430.000635 | N103: =N82+N98 -> 9122.973258 | T103: =INDEX(J103:R103,$G$1) -> 3801.788793
D105: Total Cost of Operation | F105: USD/km | H105: =IF(H101,H102/H101) -> 0.2520030427 | I105: =IF(I101,I102/I101) -> 0.3972885275 | J105: =IF(J101,J102/J101) -> 0.175939814 | K105: =IF(K101,K102/K101) -> 0.2761941495 | L105: =IF(L101,L102/L101) -> 0.4647892179 | M105: 0.343750228 | N105: =IF(N101,N102/N101) -> 0.4222005515 | T105: =INDEX(J105:R105,$G$1) -> 0.175939814
D106: Total Cost of Operation | F106: USD/km | H106: =IF(H101,H103/H101) -> 0.2181138389 | I106: =IF(I101,I103/I101) -> 0.3438019434 | J106: =IF(J101,J103/J101) -> 0.1520715517 | K106: =IF(K101,K103/K101) -> 0.2447880979 | L106: =IF(L101,L103/L101) -> 0.4079385502 | M106: 0.2972000254 | N106: =IF(N101,N103/N101) -> 0.3649189303 | T106: =INDEX(J106:R106,$G$1) -> 0.1520715517
D108: Total Cost of Operation | F108: USD/km | H108: =H105*100 -> 25.20030427 | I108: =I105*100 -> 39.72885275 | J108: =J105*100 -> 17.5939814 | K108: 27.61941495 | L108: 46.47892179 | M108: 34.3750228 | N108: 42.22005515 | T108: =INDEX(J108:R108,$G$1) -> 17.5939814
D109: Total Cost of Operation | F109: USD/km | H109: =H106*100 -> 21.81138389 | I109: =I106*100 -> 34.38019434 | J109: =J106*100 -> 15.20715517 | K109: 24.47880979 | L109: 40.79385502 | M109: 29.72000254 | N109: 36.49189303 | T109: =INDEX(J109:R109,$G$1) -> 15.20715517

Sheet Summary
D3: Hydrogen
D4: Battery
D5: Internal Combustion
D8: Hydrogen Cost | E8: USD/kg | F8: 5 | G8: 50 | H8: H Applied | I8: 3.5 | J8: H Base
D9: Petrol Cost | E9: USD/litre | F9: 1.5 | G9: 15 | H9: P Applied | I9: 1.5 | J9: P Base
D10: Electricity Cost | E10: USD/kWh | F10: 0.15 | G10: 15 | H10: E Applied | I10: 0.15 | J10: E Base
D12: BEV Life | E12: Years | F12: 10 | G12: 10 | H12: BL Applied | I12: 10 | J12: BL Base
D13: FCEV Life | E13: Years | F13: 15 | G13: 15 | H13: FC Applied | I13: 15 | J13: FC Base
D14: ICE Life | E14: Years | F14: 15 | G14: 15 | H14: ICE Applied | I14: 15 | J14: ICE Base
D16: BEV Degrade | E16: % p.a. | F16: 0.005 | G16: 5 | H16: Degrade Ap | I16: 0.005 | J16: Degrade Base

Sheet Electric Vehicles
B3: Efficiency
Q15: 100 | R15: km
Q16: 15 | R16: kWh
Q18: kwh/km | R18: =Q16/Q15 -> 0.15
U62: 26 | V62: 100
U63: =U62/V62 -> 0.26
U66: 26 | V66: 100 | W66: =U66/V66 -> 0.26
E105: Mpg | F105: 33
B139: Battery Life
B223: Degradation
B273: Up-Front Cost
D275: 31670 | F275: 19460
B318: Nissan Up-front
B410: Battery Replacement
M532: 6500 | N532: 40 | O532: =M532/N532 -> 162.5
B533: Tesla Cost
E534: 69240
B576: Maintenance Cost
C578: Maintenance for Leaf | G578: 2928 | H578: 637 | I578: =H578+G578 -> 3565 | J578: =I578/5 -> 713
C617: Cost of Tesla | F617: 1200 | G617: =F617/5 -> 240
B647: Nissan Centra Cost
D648: 5520 | E648: 1391 | F648: =D648+E648 -> 6911 | H648: =F648/5 -> 1382.2

Sheet LCOE Points
B3: Use PMT with project finance IRR (WACC) to find the LCOE -- you don't need a financial model
B5: A financial model is just a proof
B7: LCOE with PMT can account for different lives
B9: If you know the project IRR and the life, you just need the capital cost, operating cost and the production
B11: Use the formula Adj IRR = (1+IRR)/(1+Inflation) to adjust carrying charge for inflation
B13: Use the formula Adj IRR = (1+IRR)/(1-Degradation) to adjust carrying charge for degradation
B15: Don’t worry about carrying charge factor -- just tells you how much money you need to get back your capital cost and also the financing cost
B17: You can use a financal model to derive the project IRR required to arrive at the equity IRR -- Finance people are obsessed with equity IRR
B19: The big test in financial model verification is the IRR
B21: Taxes on Equity
C22: Equity Return | E22: 100
C23: Tax Rate | E23: 0.25 | H23: Formula:
C24: Revenues | E24: =E22/(1-E23) -> 133.3333333 | H24: Revenue = Base/(1-t)
C25: Return | E25: =E22 -> 100
C26: Taxes | E26: =E24*E23 -> 33.33333333
C27: Equity Return | E27: =E24-E26 -> 100
B29: PV of Tax Shield | M29: Equity Cash After tax | O29: 100
C30: Depreciation | E30: 20 | F30: 20 | H30: 20 | I30: 20 | J30: 20 | M30: Tax Rate | O30: 0.25
C31: Pre-tax IRR Nominal | D31: 0.06 | E31: =NPV(D31,E30:J30) -> 84.24727571 | M31: LOCE - Revenues - Incorrect | O31: =O29+O30*O29 -> 125 | P31: =_xlfn.FORMULATEXT(O31) -> =O29+O30*O29
C32: Value of Tax Shield | E32: =E31*E23 -> 21.06181893
C33: Total Cost | E33: 100
M34: Equity Cash After tax | O34: 100
B35: Tax Shields must be at the nominal discount rate because they are in nominal currency | M35: Tax Rate | O35: 0.25
M36: LOCE - Revenues - Incorrect | O36: =O34/(1-O35) -> 133.3333333 | P36: =_xlfn.FORMULATEXT(O36) -> =O34/(1-O35)
B37: After tax WACC | H37: Tax Rate | I37: 0.25 | O37: =O36*O35 -> 33.33333333
H39: Cost of | O39: =O36-O37 -> 100
F40: % | H40: Capital | I40: After tax | J40: WACC
E41: Debt | F41: 0.6 | G41: Int Rate | H41: 0.04 | I41: =H41*(1-I37) -> 0.03 | J41: =I41*F41 -> 0.018 | M41: PMT --> Drives Return | O41: =O34 -> 100
E42: Equity | F42: =1-F41 -> 0.4 | G42: IRR on Eq | H42: 0.07 | I42: =H42 -> 0.07 | J42: =I42*F42 -> 0.028 | O42: =O41/(1-O35) -> 133.3333333
E43: Total | J43: =J41+J42 -> 0.046
E45: Project IRR = WACC
